[Event "Titled Tuesday Blitz May 4 2021"]
[White "Budrewicz, Krzysztof"]
[Black "Tristan, Leonardo"]
[WhiteFideId "1127950"]
[BlackFideId "113816"]
[WhiteElo "2276"]
[BlackElo "2404"]
[Result "1-0"]
[Round "02"]
[TimeControl "180+1"]
[Date "2021.05.04"]
[WhiteClock "0:00:17"]
[BlackClock "0:00:02"]

1. d4 {[%clk 0:03:00]}  d5 {[%clk 0:03:00]} 2. c4 {[%clk 0:02:57]}  e6 {[%clk 0:03:00]} 3. Nc3 {[%clk 0:02:57]}  a6 {[%clk 0:03:00]} 4. cxd5 {[%clk 0:02:54]}  exd5 {[%clk 0:03:01]} 5. Nf3 {[%clk 0:02:54]}  Nf6 {[%clk 0:03:01]} 6. Bg5 {[%clk 0:02:54]}  Be6 {[%clk 0:03:01]} 7. e3 {[%clk 0:02:54]}  Nbd7 {[%clk 0:03:02]} 8. Bd3 {[%clk 0:02:54]}  Bd6 {[%clk 0:03:02]} 9. O-O {[%clk 0:02:53]}  c6 {[%clk 0:03:02]} 10. Rc1 {[%clk 0:02:51]}  Qc7 {[%clk 0:02:59]} 11. Bh4 {[%clk 0:02:48]}  h6 {[%clk 0:02:59]} 12. Re1 {[%clk 0:02:45]}  O-O {[%clk 0:02:59]} 13. Bb1 {[%clk 0:02:43]}  Rfe8 {[%clk 0:02:53]} 14. Qc2 {[%clk 0:02:41]}  Bg4 {[%clk 0:02:21]} 15. Bg3 {[%clk 0:02:40]}  Bxg3 {[%clk 0:02:20]} 16. hxg3 {[%clk 0:02:40]}  Bh5 {[%clk 0:02:09]} 17. Nh4 {[%clk 0:02:35]}  Bg4 {[%clk 0:02:06]} 18. a3 {[%clk 0:02:24]}  a5 {[%clk 0:02:04]} 19. Qb3 {[%clk 0:02:17]}  Qb6 {[%clk 0:01:54]} 20. Qc2 {[%clk 0:02:12]}  Qd8 {[%clk 0:01:41]} 21. Nf5 {[%clk 0:02:09]}  Bxf5 {[%clk 0:01:38]} 22. Qxf5 {[%clk 0:02:08]}  Nb6 {[%clk 0:01:37]} 23. Bd3 {[%clk 0:02:01]}  a4 {[%clk 0:01:18]} 24. Rc2 {[%clk 0:01:58]}  Qd7 {[%clk 0:01:18]} 25. Qxd7 {[%clk 0:01:57]}  Nfxd7 {[%clk 0:01:18]} 26. Rec1 {[%clk 0:01:57]}  Nc8 {[%clk 0:01:15]} 27. Rd2 {[%clk 0:01:55]}  Nd6 {[%clk 0:01:16]} 28. Kf1 {[%clk 0:01:49]}  b5 {[%clk 0:01:16]} 29. Na2 {[%clk 0:01:47]}  Nc4 {[%clk 0:01:15]} 30. Bxc4 {[%clk 0:01:47]}  bxc4 {[%clk 0:01:08]} 31. Nb4 {[%clk 0:01:48]}  Re6 {[%clk 0:00:56]} 32. Rc3 {[%clk 0:01:44]}  Nf6 {[%clk 0:00:56]} 33. f3 {[%clk 0:01:43]}  Rae8 {[%clk 0:00:55]} 34. Kf2 {[%clk 0:01:44]}  g5 {[%clk 0:00:55]} 35. g4 {[%clk 0:01:43]}  Kg7 {[%clk 0:00:52]} 36. Na6 {[%clk 0:01:42]}  Nd7 {[%clk 0:00:52]} 37. Nc7 {[%clk 0:01:41]}  R6e7 {[%clk 0:00:49]} 38. Nxe8+ {[%clk 0:01:41]}  Rxe8 {[%clk 0:00:50]} 39. Re2 {[%clk 0:01:41]}  Nf6 {[%clk 0:00:48]} 40. Rc1 {[%clk 0:01:34]}  Rb8 {[%clk 0:00:48]} 41. Kg3 {[%clk 0:01:28]}  Rb3 {[%clk 0:00:48]} 42. Rc3 {[%clk 0:01:28]}  Rb7 {[%clk 0:00:48]} 43. e4 {[%clk 0:01:24]}  Re7 {[%clk 0:00:48]} 44. Rce3 {[%clk 0:01:18]}  Rb7 {[%clk 0:00:45]} 45. e5 {[%clk 0:01:12]}  Ne8 {[%clk 0:00:14]} 46. e6 {[%clk 0:01:12]}  f6 {[%clk 0:00:15]} 47. e7 {[%clk 0:01:08]}  Kf7 {[%clk 0:00:15]} 48. Kf2 {[%clk 0:00:59]}  Rb8 {[%clk 0:00:13]} 49. Ke1 {[%clk 0:00:56]}  Nd6 {[%clk 0:00:08]} 50. e8=Q+ {[%clk 0:00:56]}  Nxe8 {[%clk 0:00:07]} 51. Re7+ {[%clk 0:00:54]}  Kf8 {[%clk 0:00:07]} 52. Kd1 {[%clk 0:00:37]}  Nd6 {[%clk 0:00:07]} 53. R7e6 {[%clk 0:00:31]}  Nb5 {[%clk 0:00:07]} 54. Rxf6+ {[%clk 0:00:28]}  Kg7 {[%clk 0:00:08]} 55. Rxc6 {[%clk 0:00:27]}  Nxd4 {[%clk 0:00:08]} 56. Re7+ {[%clk 0:00:28]}  Kf8 {[%clk 0:00:09]} 57. Rcc7 {[%clk 0:00:24]}  Rxb2 {[%clk 0:00:07]} 58. Rh7 {[%clk 0:00:22]}  Kg8 {[%clk 0:00:08]} 59. Rcg7+ {[%clk 0:00:20]}  Kf8 {[%clk 0:00:08]} 60. Rb7 {[%clk 0:00:18]}  Rxb7 {[%clk 0:00:05]} 61. Rxb7 {[%clk 0:00:19]}  Nb3 {[%clk 0:00:02]} 62. Rb4 {[%clk 0:00:17]} 1-0


[Site "https://www.chess.com"]

[Event "Titled Tuesday Blitz May 4 2021"]
[White "Buscar, Michael"]
[Black "Khnykin, Nikolay"]
[WhiteFideId "2603616"]
[BlackFideId "4188853"]
[WhiteElo "2010"]
[BlackElo "2280"]
[Result "1-0"]
[Round "02"]
[TimeControl "180+1"]
[Date "2021.05.04"]
[WhiteClock "0:00:40"]
[BlackClock "0:00:17"]

1. d4 {[%clk 0:03:00]}  e6 {[%clk 0:02:29]} 2. c4 {[%clk 0:02:59]}  f5 {[%clk 0:02:24]} 3. g3 {[%clk 0:02:58]}  Nf6 {[%clk 0:02:24]} 4. Bg2 {[%clk 0:02:58]}  Be7 {[%clk 0:02:23]} 5. Nh3 {[%clk 0:02:58]}  O-O {[%clk 0:02:22]} 6. Nf4 {[%clk 0:02:58]}  d6 {[%clk 0:02:21]} 7. Nd2 {[%clk 0:02:55]}  Nbd7 {[%clk 0:02:20]} 8. Nxe6 {[%clk 0:02:53]}  Qe8 {[%clk 0:02:18]} 9. Nxc7 {[%clk 0:02:49]}  Qh5 {[%clk 0:02:16]} 10. Nxa8 {[%clk 0:02:48]}  Bd8 {[%clk 0:02:02]} 11. e3 {[%clk 0:02:36]}  Qh6 {[%clk 0:01:57]} 12. b3 {[%clk 0:02:29]}  f4 {[%clk 0:01:57]} 13. gxf4 {[%clk 0:02:23]}  Nb8 {[%clk 0:01:50]} 14. Ne4 {[%clk 0:02:14]}  Ng4 {[%clk 0:01:13]} 15. h3 {[%clk 0:02:00]}  Nf6 {[%clk 0:01:12]} 16. Nxf6+ {[%clk 0:02:00]}  Qxf6 {[%clk 0:01:10]} 17. Qh5 {[%clk 0:01:42]}  Nd7 {[%clk 0:01:02]} 18. Ba3 {[%clk 0:01:36]}  g6 {[%clk 0:00:57]} 19. Qd5+ {[%clk 0:01:29]}  Kh8 {[%clk 0:00:52]} 20. Qxd6 {[%clk 0:01:16]}  Qg7 {[%clk 0:00:45]} 21. Nc7 {[%clk 0:01:11]}  Rg8 {[%clk 0:00:26]} 22. Bd5 {[%clk 0:00:59]}  Bxc7 {[%clk 0:00:25]} 23. Qxc7 {[%clk 0:00:59]}  Re8 {[%clk 0:00:23]} 24. O-O-O {[%clk 0:00:57]}  Qf6 {[%clk 0:00:19]} 25. h4 {[%clk 0:00:50]}  Qa6 {[%clk 0:00:18]} 26. Qd6 {[%clk 0:00:44]}  Nb6 {[%clk 0:00:17]} 27. Qf6# {[%clk 0:00:40]} 1-0


[Site "https://www.chess.com"]

[Event "Titled Tuesday Blitz May 4 2021"]
[White "Caputcuoglu, Zeki Berke"]
[Black "Rychagov, Andrey"]
[WhiteFideId "34548610"]
[BlackFideId "4119932"]
[WhiteElo "1368"]
[BlackElo "2527"]
[Result "0-1"]
[Round "02"]
[TimeControl "180+1"]
[Date "2021.05.04"]
[WhiteClock "0:00:02"]
[BlackClock "0:00:58"]

1. e4 {[%clk 0:03:00]}  c6 {[%clk 0:02:57]} 2. d4 {[%clk 0:03:00]}  c5 {[%clk 0:02:58]} 3. d5 {[%clk 0:02:56]}  e6 {[%clk 0:02:51]} 4. Nf3 {[%clk 0:02:56]}  exd5 {[%clk 0:02:51]} 5. exd5 {[%clk 0:02:57]}  d6 {[%clk 0:02:52]} 6. Bd3 {[%clk 0:02:45]}  Nf6 {[%clk 0:02:49]} 7. O-O {[%clk 0:02:43]}  Be7 {[%clk 0:02:48]} 8. c4 {[%clk 0:02:41]}  O-O {[%clk 0:02:48]} 9. Nc3 {[%clk 0:02:42]}  Bg4 {[%clk 0:02:47]} 10. h3 {[%clk 0:02:42]}  Bxf3 {[%clk 0:02:43]} 11. Qxf3 {[%clk 0:02:41]}  Nbd7 {[%clk 0:02:44]} 12. Bf4 {[%clk 0:02:39]}  Ne5 {[%clk 0:02:43]} 13. Bxe5 {[%clk 0:02:39]}  dxe5 {[%clk 0:02:44]} 14. Qf5 {[%clk 0:02:34]}  Bd6 {[%clk 0:02:40]} 15. Rae1 {[%clk 0:02:28]}  g6 {[%clk 0:02:39]} 16. Qf3 {[%clk 0:02:18]}  Ne8 {[%clk 0:02:36]} 17. g4 {[%clk 0:01:47]}  f5 {[%clk 0:02:35]} 18. Qg2 {[%clk 0:01:22]}  e4 {[%clk 0:02:31]} 19. Bc2 {[%clk 0:01:23]}  Ng7 {[%clk 0:02:14]} 20. f3 {[%clk 0:01:19]}  Be5 {[%clk 0:02:13]} 21. f4 {[%clk 0:01:03]}  Bxc3 {[%clk 0:02:08]} 22. bxc3 {[%clk 0:01:03]}  Qf6 {[%clk 0:02:08]} 23. Re3 {[%clk 0:00:59]}  Kh8 {[%clk 0:02:06]} 24. g5 {[%clk 0:00:57]}  Qd6 {[%clk 0:02:03]} 25. h4 {[%clk 0:00:56]}  a6 {[%clk 0:01:50]} 26. Bd1 {[%clk 0:00:23]}  b5 {[%clk 0:01:49]} 27. h5 {[%clk 0:00:21]}  bxc4 {[%clk 0:01:45]} 28. hxg6 {[%clk 0:00:14]}  hxg6 {[%clk 0:01:45]} 29. Rh3+ {[%clk 0:00:12]}  Kg8 {[%clk 0:01:45]} 30. Qf2 {[%clk 0:00:10]}  Qxd5 {[%clk 0:01:40]} 31. Be2 {[%clk 0:00:08]}  Rad8 {[%clk 0:01:37]} 32. Rd1 {[%clk 0:00:08]}  Qe6 {[%clk 0:01:37]} 33. Rb1 {[%clk 0:00:06]}  Rd3 {[%clk 0:01:28]} 34. Bxd3 {[%clk 0:00:06]}  cxd3 {[%clk 0:01:28]} 35. Qxc5 {[%clk 0:00:06]}  Nh5 {[%clk 0:01:26]} 36. Qe3 {[%clk 0:00:04]}  Rd8 {[%clk 0:01:23]} 37. Rd1 {[%clk 0:00:02]}  Qd6 {[%clk 0:01:23]} 38. Rh2 {[%clk 0:00:02]}  Qxf4 {[%clk 0:01:21]} 39. Qxf4 {[%clk 0:00:02]}  Nxf4 {[%clk 0:01:21]} 40. Kf2 {[%clk 0:00:02]}  Nd5 {[%clk 0:01:17]} 41. Ke1 {[%clk 0:00:02]}  Nxc3 {[%clk 0:01:16]} 42. Rc1 {[%clk 0:00:02]}  Nxa2 {[%clk 0:01:11]} 43. Rc6 {[%clk 0:00:03]}  e3 {[%clk 0:01:03]} 44. Rxa2 {[%clk 0:00:02]}  d2+ {[%clk 0:00:58]} 45. Kd1 {[%clk 0:00:02]}  e2+ {[%clk 0:00:58]} 0-1


[Site "https://www.chess.com"]

[Event "Titled Tuesday Blitz May 4 2021"]
[White "Ceres, Dragos"]
[Black "Goltsev, Dmitry"]
[WhiteFideId "13905864"]
[BlackFideId "24176710"]
[WhiteElo "2118"]
[BlackElo "2383"]
[Result "1-0"]
[Round "02"]
[TimeControl "180+1"]
[Date "2021.05.04"]
[WhiteClock "0:00:08"]
[BlackClock "0:00:02"]

1. e4 {[%clk 0:03:00]}  e6 {[%clk 0:02:58]} 2. d4 {[%clk 0:03:00]}  d5 {[%clk 0:02:58]} 3. Nd2 {[%clk 0:03:01]}  Nf6 {[%clk 0:02:59]} 4. e5 {[%clk 0:03:01]}  Nfd7 {[%clk 0:02:59]} 5. f4 {[%clk 0:03:02]}  c5 {[%clk 0:02:59]} 6. c3 {[%clk 0:03:03]}  Nc6 {[%clk 0:03:00]} 7. Ndf3 {[%clk 0:03:03]}  a6 {[%clk 0:03:00]} 8. Bd3 {[%clk 0:03:02]}  b5 {[%clk 0:03:00]} 9. Ne2 {[%clk 0:03:02]}  g6 {[%clk 0:03:00]} 10. Be3 {[%clk 0:02:59]}  Be7 {[%clk 0:03:00]} 11. Kf2 {[%clk 0:02:52]}  Qb6 {[%clk 0:03:00]} 12. a3 {[%clk 0:02:51]}  a5 {[%clk 0:02:59]} 13. dxc5 {[%clk 0:02:44]}  Nxc5 {[%clk 0:02:49]} 14. b4 {[%clk 0:02:37]}  Nxd3+ {[%clk 0:02:46]} 15. Qxd3 {[%clk 0:02:37]}  Qb8 {[%clk 0:02:45]} 16. Ned4 {[%clk 0:02:36]}  Nxd4 {[%clk 0:02:41]} 17. Nxd4 {[%clk 0:02:36]}  Bd7 {[%clk 0:02:41]} 18. Nb3 {[%clk 0:02:34]}  a4 {[%clk 0:02:39]} 19. Nc5 {[%clk 0:02:32]}  Bc6 {[%clk 0:02:39]} 20. Bd4 {[%clk 0:02:31]}  h5 {[%clk 0:02:37]} 21. g3 {[%clk 0:02:29]}  Kd8 {[%clk 0:02:35]} 22. Rhe1 {[%clk 0:02:27]}  Kc7 {[%clk 0:02:36]} 23. Rad1 {[%clk 0:02:26]}  Qc8 {[%clk 0:02:32]} 24. Qe3 {[%clk 0:02:26]}  h4 {[%clk 0:02:24]} 25. g4 {[%clk 0:02:26]}  h3 {[%clk 0:02:24]} 26. Ke2 {[%clk 0:02:24]}  Rh4 {[%clk 0:02:23]} 27. Rg1 {[%clk 0:02:22]}  Qg8 {[%clk 0:02:22]} 28. Nd3 {[%clk 0:02:19]}  Kb7 {[%clk 0:02:15]} 29. Bc5 {[%clk 0:02:17]}  Bd8 {[%clk 0:02:13]} 30. Nf2 {[%clk 0:02:13]}  g5 {[%clk 0:02:11]} 31. Rg3 {[%clk 0:02:05]}  gxf4 {[%clk 0:02:09]} 32. Qxf4 {[%clk 0:02:06]}  Bg5 {[%clk 0:02:09]} 33. Qd4 {[%clk 0:02:03]}  Qh8 {[%clk 0:02:04]} 34. Rdd3 {[%clk 0:01:58]}  f5 {[%clk 0:01:34]} 35. Rdf3 {[%clk 0:01:31]}  Qg7 {[%clk 0:01:07]} 36. Bd6 {[%clk 0:01:19]}  Bd8 {[%clk 0:01:02]} 37. Nd3 {[%clk 0:00:59]}  Bb6 {[%clk 0:00:51]} 38. Bc5 {[%clk 0:00:57]}  fxg4 {[%clk 0:00:43]} 39. Rf6 {[%clk 0:00:48]}  Bc7 {[%clk 0:00:40]} 40. Bd6 {[%clk 0:00:38]}  Bb6 {[%clk 0:00:36]} 41. Qf4 {[%clk 0:00:38]}  Rh7 {[%clk 0:00:32]} 42. Rxg4 {[%clk 0:00:35]}  Qd7 {[%clk 0:00:32]} 43. Nc5+ {[%clk 0:00:20]}  Bxc5 {[%clk 0:00:32]} 44. Bxc5 {[%clk 0:00:21]}  d4 {[%clk 0:00:29]} 45. Qxd4 {[%clk 0:00:20]}  Bd5 {[%clk 0:00:29]} 46. Qd3 {[%clk 0:00:19]}  Ka6 {[%clk 0:00:21]} 47. Kd2 {[%clk 0:00:16]}  Rg7 {[%clk 0:00:21]} 48. Rxg7 {[%clk 0:00:15]}  Qxg7 {[%clk 0:00:22]} 49. Qxd5 {[%clk 0:00:14]}  Qg5+ {[%clk 0:00:14]} 50. Kc2 {[%clk 0:00:14]}  Qg2+ {[%clk 0:00:04]} 51. Qxg2 {[%clk 0:00:14]}  hxg2 {[%clk 0:00:05]} 52. Rxe6+ {[%clk 0:00:14]}  Kb7 {[%clk 0:00:04]} 53. Rg6 {[%clk 0:00:15]}  Re8 {[%clk 0:00:04]} 54. Rg7+ {[%clk 0:00:14]}  Kc6 {[%clk 0:00:04]} 55. Rxg2 {[%clk 0:00:15]}  Rxe5 {[%clk 0:00:04]} 56. Bd4 {[%clk 0:00:16]}  Rh5 {[%clk 0:00:04]} 57. Kd3 {[%clk 0:00:16]}  Kd5 {[%clk 0:00:04]} 58. Kc2 {[%clk 0:00:17]}  Kc4 {[%clk 0:00:04]} 59. Rf2 {[%clk 0:00:15]}  Rh3 {[%clk 0:00:04]} 60. Be5 {[%clk 0:00:16]}  Re3 {[%clk 0:00:03]} 61. Bd4 {[%clk 0:00:16]}  Rh3 {[%clk 0:00:03]} 62. Kb2 {[%clk 0:00:13]}  Kd3 {[%clk 0:00:03]} 63. Rc2 {[%clk 0:00:12]}  Rh5 {[%clk 0:00:03]} 64. Bc5 {[%clk 0:00:10]}  Kc4 {[%clk 0:00:03]} 65. Bd6 {[%clk 0:00:10]}  Rh3 {[%clk 0:00:04]} 66. Bg3 {[%clk 0:00:10]}  Rh5 {[%clk 0:00:04]} 67. Rd2 {[%clk 0:00:10]}  Rxh2 {[%clk 0:00:01]} 68. Kc2 {[%clk 0:00:08]}  Rg2 {[%clk 0:00:01]} 69. Bf2 {[%clk 0:00:07]}  Rxf2 {[%clk 0:00:01]} 70. Rxf2 {[%clk 0:00:08]}  Kd5 {[%clk 0:00:02]} 71. Rd2+ {[%clk 0:00:08]}  Kc4 {[%clk 0:00:02]} 72. Rd4# {[%clk 0:00:08]} 1-0


[Site "https://www.chess.com"]

[Event "Titled Tuesday Blitz May 4 2021"]
[White "Chabris, Christopher"]
[Black "Royal, Shreyas"]
[WhiteFideId "2005263"]
[BlackFideId "448869"]
[WhiteElo "2274"]
[BlackElo "1931"]
[Result "0-1"]
[Round "02"]
[TimeControl "180+1"]
[Date "2021.05.04"]
[WhiteClock "0:00:05"]
[BlackClock "0:01:27"]

1. e4 {[%clk 0:02:59]}  e5 {[%clk 0:02:59]} 2. Nf3 {[%clk 0:02:57]}  Nc6 {[%clk 0:03:00]} 3. Bb5 {[%clk 0:02:57]}  a6 {[%clk 0:03:00]} 4. Ba4 {[%clk 0:02:57]}  Nf6 {[%clk 0:02:59]} 5. O-O {[%clk 0:02:58]}  Be7 {[%clk 0:02:59]} 6. Re1 {[%clk 0:02:58]}  b5 {[%clk 0:03:00]} 7. Bb3 {[%clk 0:02:58]}  d6 {[%clk 0:03:00]} 8. c3 {[%clk 0:02:58]}  O-O {[%clk 0:02:59]} 9. h3 {[%clk 0:02:59]}  Nb8 {[%clk 0:02:59]} 10. d4 {[%clk 0:02:58]}  Nbd7 {[%clk 0:02:59]} 11. Nbd2 {[%clk 0:02:56]}  c5 {[%clk 0:02:59]} 12. d5 {[%clk 0:02:48]}  c4 {[%clk 0:02:59]} 13. Bc2 {[%clk 0:02:49]}  Qc7 {[%clk 0:02:59]} 14. Nf1 {[%clk 0:02:31]}  Nc5 {[%clk 0:02:57]} 15. b4 {[%clk 0:02:27]}  cxb3 {[%clk 0:02:56]} 16. axb3 {[%clk 0:02:28]}  Bd7 {[%clk 0:02:55]} 17. Ng3 {[%clk 0:02:20]}  a5 {[%clk 0:02:54]} 18. Bd2 {[%clk 0:02:12]}  Rfb8 {[%clk 0:02:48]} 19. b4 {[%clk 0:02:03]}  Na4 {[%clk 0:02:46]} 20. Bxa4 {[%clk 0:01:42]}  bxa4 {[%clk 0:02:47]} 21. Nh4 {[%clk 0:01:37]}  Nxd5 {[%clk 0:02:28]} 22. Nhf5 {[%clk 0:01:32]}  Bxf5 {[%clk 0:02:27]} 23. Nxf5 {[%clk 0:01:30]}  Nf4 {[%clk 0:02:27]} 24. Bxf4 {[%clk 0:01:20]}  exf4 {[%clk 0:02:26]} 25. Qg4 {[%clk 0:00:41]}  Bf6 {[%clk 0:02:23]} 26. Rac1 {[%clk 0:00:37]}  f3 {[%clk 0:02:09]} 27. gxf3 {[%clk 0:00:27]}  a3 {[%clk 0:02:09]} 28. f4 {[%clk 0:00:26]}  g6 {[%clk 0:02:00]} 29. e5 {[%clk 0:00:23]}  dxe5 {[%clk 0:01:59]} 30. fxe5 {[%clk 0:00:23]}  Bxe5 {[%clk 0:02:00]} 31. Nh6+ {[%clk 0:00:18]}  Kg7 {[%clk 0:02:00]} 32. Nf5+ {[%clk 0:00:18]}  Kh8 {[%clk 0:01:57]} 33. Nh6 {[%clk 0:00:17]}  Bg7 {[%clk 0:01:55]} 34. Qh4 {[%clk 0:00:09]}  a2 {[%clk 0:01:52]} 35. Re7 {[%clk 0:00:09]}  Qb6 {[%clk 0:01:37]} 36. Nxf7+ {[%clk 0:00:09]}  Kg8 {[%clk 0:01:36]} 37. Qc4 {[%clk 0:00:07]}  Kf8 {[%clk 0:01:30]} 38. Ng5 {[%clk 0:00:05]}  Kxe7 {[%clk 0:01:27]} 39. Qe6+ {[%clk 0:00:05]}  Qxe6 {[%clk 0:01:27]} 0-1


[Site "https://www.chess.com"]

[Event "Titled Tuesday Blitz May 4 2021"]
[White "Chandratreya, Prachiti"]
[Black "Baches Garcia, Guillermo"]
[WhiteFideId "46611215"]
[BlackFideId "2209764"]
[WhiteElo "1737"]
[BlackElo "2454"]
[Result "1/2-1/2"]
[Round "02"]
[TimeControl "180+1"]
[Date "2021.05.04"]
[WhiteClock "0:00:13"]
[BlackClock "0:00:11"]

1. e4 {[%clk 0:03:00]}  c5 {[%clk 0:03:00]} 2. c3 {[%clk 0:03:00]}  d5 {[%clk 0:03:00]} 3. exd5 {[%clk 0:02:59]}  Qxd5 {[%clk 0:03:00]} 4. d4 {[%clk 0:03:00]}  Nc6 {[%clk 0:03:00]} 5. Nf3 {[%clk 0:02:59]}  Bg4 {[%clk 0:03:01]} 6. Be2 {[%clk 0:02:59]}  cxd4 {[%clk 0:03:01]} 7. cxd4 {[%clk 0:02:57]}  e6 {[%clk 0:03:01]} 8. Nc3 {[%clk 0:02:57]}  Bb4 {[%clk 0:03:01]} 9. O-O {[%clk 0:02:57]}  Qa5 {[%clk 0:03:01]} 10. d5 {[%clk 0:02:40]}  O-O-O {[%clk 0:03:00]} 11. a3 {[%clk 0:02:31]}  exd5 {[%clk 0:02:51]} 12. Bg5 {[%clk 0:02:25]}  Be7 {[%clk 0:02:50]} 13. b4 {[%clk 0:02:23]}  Qc7 {[%clk 0:02:44]} 14. Nxd5 {[%clk 0:02:19]}  Qd7 {[%clk 0:02:32]} 15. Nxe7+ {[%clk 0:02:17]}  Ngxe7 {[%clk 0:02:29]} 16. Qa4 {[%clk 0:01:49]}  Kb8 {[%clk 0:02:19]} 17. Bf4+ {[%clk 0:01:44]}  Ka8 {[%clk 0:02:14]} 18. Be3 {[%clk 0:01:43]}  Bxf3 {[%clk 0:01:58]} 19. Bxf3 {[%clk 0:01:43]}  Nd4 {[%clk 0:01:56]} 20. Qxd7 {[%clk 0:01:34]}  Nxf3+ {[%clk 0:01:52]} 21. gxf3 {[%clk 0:01:35]}  Rxd7 {[%clk 0:01:52]} 22. Rfd1 {[%clk 0:01:33]}  Rhd8 {[%clk 0:01:52]} 23. Rxd7 {[%clk 0:01:32]}  Rxd7 {[%clk 0:01:52]} 24. Rc1 {[%clk 0:01:30]}  b6 {[%clk 0:01:43]} 25. Rc3 {[%clk 0:01:25]}  Kb7 {[%clk 0:01:39]} 26. Kg2 {[%clk 0:01:24]}  Nd5 {[%clk 0:01:36]} 27. Rb3 {[%clk 0:01:24]}  g6 {[%clk 0:01:33]} 28. Kg3 {[%clk 0:01:24]}  Ne7 {[%clk 0:01:28]} 29. Kg2 {[%clk 0:01:21]}  Nf5 {[%clk 0:01:27]} 30. Bg5 {[%clk 0:01:20]}  Rd5 {[%clk 0:01:23]} 31. Bf6 {[%clk 0:01:19]}  h5 {[%clk 0:01:17]} 32. Rc3 {[%clk 0:01:17]}  Nd6 {[%clk 0:01:15]} 33. Bd8 {[%clk 0:01:09]}  Nb5 {[%clk 0:01:08]} 34. Re3 {[%clk 0:01:04]}  Rxd8 {[%clk 0:01:08]} 35. Re7+ {[%clk 0:01:03]}  Nc7 {[%clk 0:01:06]} 36. Rxf7 {[%clk 0:01:04]}  Rd6 {[%clk 0:01:06]} 37. f4 {[%clk 0:01:03]}  b5 {[%clk 0:01:06]} 38. f5 {[%clk 0:01:03]}  gxf5 {[%clk 0:01:04]} 39. Rxf5 {[%clk 0:01:02]}  Rd5 {[%clk 0:01:04]} 40. Rf7 {[%clk 0:01:01]}  Kc6 {[%clk 0:01:03]} 41. f4 {[%clk 0:01:01]}  Rd2+ {[%clk 0:01:01]} 42. Kg3 {[%clk 0:01:01]}  Rd3+ {[%clk 0:01:01]} 43. Kh4 {[%clk 0:01:01]}  Rxa3 {[%clk 0:01:01]} 44. f5 {[%clk 0:01:01]}  a5 {[%clk 0:00:59]} 45. f6 {[%clk 0:01:01]}  axb4 {[%clk 0:00:57]} 46. Kxh5 {[%clk 0:00:53]}  Ne6 {[%clk 0:00:56]} 47. Re7 {[%clk 0:00:51]}  Kd6 {[%clk 0:00:56]} 48. Rb7 {[%clk 0:00:49]}  Kc5 {[%clk 0:00:47]} 49. f7 {[%clk 0:00:48]}  Rf3 {[%clk 0:00:45]} 50. Kg4 {[%clk 0:00:46]}  Rf4+ {[%clk 0:00:39]} 51. Kg3 {[%clk 0:00:45]}  b3 {[%clk 0:00:26]} 52. Re7 {[%clk 0:00:41]}  Kd6 {[%clk 0:00:26]} 53. Rb7 {[%clk 0:00:37]}  Rb4 {[%clk 0:00:24]} 54. Rb6+ {[%clk 0:00:37]}  Ke7 {[%clk 0:00:24]} 55. Rxe6+ {[%clk 0:00:37]}  Kxf7 {[%clk 0:00:23]} 56. Re1 {[%clk 0:00:37]}  b2 {[%clk 0:00:22]} 57. Rb1 {[%clk 0:00:37]}  Ke6 {[%clk 0:00:22]} 58. h4 {[%clk 0:00:33]}  Kd5 {[%clk 0:00:18]} 59. h5 {[%clk 0:00:33]}  Kc4 {[%clk 0:00:17]} 60. h6 {[%clk 0:00:32]}  Rb3+ {[%clk 0:00:16]} 61. Kg2 {[%clk 0:00:25]}  Ra3 {[%clk 0:00:15]} 62. Rxb2 {[%clk 0:00:22]}  Ra8 {[%clk 0:00:15]} 63. Kf3 {[%clk 0:00:18]}  b4 {[%clk 0:00:15]} 64. Kg4 {[%clk 0:00:18]}  Kc3 {[%clk 0:00:15]} 65. Rb1 {[%clk 0:00:18]}  b3 {[%clk 0:00:15]} 66. Kg5 {[%clk 0:00:18]}  Kc2 {[%clk 0:00:15]} 67. Rh1 {[%clk 0:00:17]}  b2 {[%clk 0:00:15]} 68. Kg6 {[%clk 0:00:15]}  b1=Q {[%clk 0:00:10]} 69. Rxb1 {[%clk 0:00:14]}  Kxb1 {[%clk 0:00:11]} 70. h7 {[%clk 0:00:14]}  Ra6+ {[%clk 0:00:11]} 71. Kg7 {[%clk 0:00:14]}  Ra7+ {[%clk 0:00:11]} 72. Kg6 {[%clk 0:00:13]}  Rxh7 {[%clk 0:00:11]} 73. Kxh7 {[%clk 0:00:13]} 1/2-1/2


[Site "https://www.chess.com"]

[Event "Titled Tuesday Blitz May 4 2021"]
[White "Chen, Forest"]
[Black "Leitao, Rafael"]
[WhiteFideId "30908205"]
[BlackFideId "2101246"]
[WhiteElo "2524"]
[BlackElo "2609"]
[Result "1/2-1/2"]
[Round "02"]
[TimeControl "180+1"]
[Date "2021.05.04"]
[WhiteClock "0:00:37"]
[BlackClock "0:01:01"]

1. d4 {[%clk 0:03:00]}  Nf6 {[%clk 0:02:58]} 2. c4 {[%clk 0:03:00]}  g6 {[%clk 0:02:59]} 3. Nc3 {[%clk 0:03:00]}  Bg7 {[%clk 0:02:59]} 4. e4 {[%clk 0:03:01]}  d6 {[%clk 0:03:00]} 5. Nf3 {[%clk 0:03:01]}  O-O {[%clk 0:03:00]} 6. Be2 {[%clk 0:03:02]}  e5 {[%clk 0:03:00]} 7. O-O {[%clk 0:03:02]}  exd4 {[%clk 0:03:00]} 8. Nxd4 {[%clk 0:03:02]}  Re8 {[%clk 0:03:00]} 9. f3 {[%clk 0:03:02]}  c6 {[%clk 0:03:01]} 10. Kh1 {[%clk 0:03:02]}  d5 {[%clk 0:02:58]} 11. cxd5 {[%clk 0:02:46]}  cxd5 {[%clk 0:02:57]} 12. Bb5 {[%clk 0:02:46]}  Bd7 {[%clk 0:02:52]} 13. exd5 {[%clk 0:02:36]}  Bxb5 {[%clk 0:02:51]} 14. Ndxb5 {[%clk 0:02:37]}  a6 {[%clk 0:02:48]} 15. Na3 {[%clk 0:02:30]}  Nbd7 {[%clk 0:02:47]} 16. Bf4 {[%clk 0:02:15]}  Nb6 {[%clk 0:02:33]} 17. Qb3 {[%clk 0:02:02]}  Nh5 {[%clk 0:02:07]} 18. Bd2 {[%clk 0:01:56]}  Qh4 {[%clk 0:01:47]} 19. Ne4 {[%clk 0:01:00]}  Be5 {[%clk 0:01:29]} 20. f4 {[%clk 0:00:48]}  Bd4 {[%clk 0:01:27]} 21. Ng5 {[%clk 0:00:41]}  Re3 {[%clk 0:01:19]} 22. Bxe3 {[%clk 0:00:38]}  Ng3+ {[%clk 0:01:18]} 23. Kg1 {[%clk 0:00:39]}  Ne2+ {[%clk 0:01:17]} 24. Kh1 {[%clk 0:00:39]}  Ng3+ {[%clk 0:01:01]} 25. Kg1 {[%clk 0:00:37]}  Ne2+ {[%clk 0:01:01]} 26. Kh1 {[%clk 0:00:37]}  Ng3+ {[%clk 0:01:01]} 1/2-1/2


[Site "https://www.chess.com"]